[Event "Titled Tuesday Blitz May 10 Early 2022"]
[White "Petre, Nad-Titus"]
[Black "Moskvin, Anatoly"]
[WhiteFideId "1204165"]
[BlackFideId "24199990"]
[WhiteElo "2354"]
[BlackElo "2079"]
[Result "1-0"]
[Round "08"]
[TimeControl "180+1"]
[Date "2022.05.11"]
[WhiteClock "0:00:06"]
[BlackClock "0:00:08"]

1. e4 {[%clk 0:03:00]}  e5 {[%clk 0:02:59]} 2. Nf3 {[%clk 0:03:00]}  Nc6 {[%clk 0:02:59]} 3. d4 {[%clk 0:03:01]}  exd4 {[%clk 0:02:59]} 4. Nxd4 {[%clk 0:03:02]}  Bc5 {[%clk 0:02:59]} 5. Nb3 {[%clk 0:03:02]}  Bb6 {[%clk 0:02:58]} 6. Nc3 {[%clk 0:03:03]}  Nge7 {[%clk 0:02:57]} 7. Qe2 {[%clk 0:03:02]}  O-O {[%clk 0:02:57]} 8. Be3 {[%clk 0:03:02]}  f5 {[%clk 0:02:58]} 9. f3 {[%clk 0:02:51]}  fxe4 {[%clk 0:02:46]} 10. fxe4 {[%clk 0:02:51]}  d6 {[%clk 0:02:36]} 11. O-O-O {[%clk 0:02:49]}  Ng6 {[%clk 0:02:34]} 12. Nd5 {[%clk 0:02:37]}  Nge5 {[%clk 0:02:27]} 13. h3 {[%clk 0:02:28]}  Be6 {[%clk 0:02:15]} 14. g4 {[%clk 0:02:07]}  Bxe3+ {[%clk 0:01:40]} 15. Nxe3 {[%clk 0:02:02]}  a5 {[%clk 0:01:39]} 16. Kb1 {[%clk 0:01:51]}  a4 {[%clk 0:01:23]} 17. Nc1 {[%clk 0:01:51]}  Qe7 {[%clk 0:01:05]} 18. h4 {[%clk 0:01:49]}  Ra6 {[%clk 0:00:47]} 19. g5 {[%clk 0:01:22]}  Rb6 {[%clk 0:00:46]} 20. Bh3 {[%clk 0:01:22]}  Na5 {[%clk 0:00:27]} 21. Bxe6+ {[%clk 0:01:00]}  Qxe6 {[%clk 0:00:28]} 22. Nd5 {[%clk 0:00:51]}  Rc6 {[%clk 0:00:29]} 23. h5 {[%clk 0:00:44]}  Nac4 {[%clk 0:00:14]} 24. Qh2 {[%clk 0:00:37]}  Rc5 {[%clk 0:00:06]} 25. Nc3 {[%clk 0:00:30]}  Na3+ {[%clk 0:00:04]} 26. Ka1 {[%clk 0:00:26]}  Nf3 {[%clk 0:00:04]} 27. Qh3 {[%clk 0:00:19]}  Nxc2+ {[%clk 0:00:03]} 28. Kb1 {[%clk 0:00:19]}  Na3+ {[%clk 0:00:04]} 29. Ka1 {[%clk 0:00:19]}  Qxh3 {[%clk 0:00:03]} 30. Rxh3 {[%clk 0:00:19]}  Nc2+ {[%clk 0:00:04]} 31. Kb1 {[%clk 0:00:19]}  Ncd4 {[%clk 0:00:05]} 32. Nd3 {[%clk 0:00:18]}  Rb5 {[%clk 0:00:05]} 33. Nd5 {[%clk 0:00:17]}  Rxd5 {[%clk 0:00:04]} 34. exd5 {[%clk 0:00:17]}  Re8 {[%clk 0:00:05]} 35. g6 {[%clk 0:00:15]}  hxg6 {[%clk 0:00:06]} 36. hxg6 {[%clk 0:00:15]}  Kf8 {[%clk 0:00:05]} 37. Rdh1 {[%clk 0:00:15]}  Ke7 {[%clk 0:00:06]} 38. Rh8 {[%clk 0:00:15]}  Rxh8 {[%clk 0:00:06]} 39. Rxh8 {[%clk 0:00:16]}  Kf6 {[%clk 0:00:06]} 40. Rc8 {[%clk 0:00:16]}  Nb5 {[%clk 0:00:07]} 41. Nf4 {[%clk 0:00:16]}  Kg5 {[%clk 0:00:06]} 42. Rf8 {[%clk 0:00:16]}  Ne5 {[%clk 0:00:05]} 43. Kc2 {[%clk 0:00:12]}  Nxg6 {[%clk 0:00:05]} 44. Nxg6 {[%clk 0:00:11]}  Kxg6 {[%clk 0:00:06]} 45. Kd3 {[%clk 0:00:12]}  c6 {[%clk 0:00:07]} 46. Kc4 {[%clk 0:00:10]}  Nc7 {[%clk 0:00:04]} 47. dxc6 {[%clk 0:00:10]}  b5+ {[%clk 0:00:05]} 48. Kd3 {[%clk 0:00:09]}  Kg5 {[%clk 0:00:04]} 49. Rd8 {[%clk 0:00:08]}  d5 {[%clk 0:00:05]} 50. Rd7 {[%clk 0:00:08]}  Ne6 {[%clk 0:00:05]} 51. c7 {[%clk 0:00:09]}  Nc5+ {[%clk 0:00:05]} 52. Kd4 {[%clk 0:00:07]}  Nxd7 {[%clk 0:00:06]} 53. c8=Q {[%clk 0:00:07]}  Nf6 {[%clk 0:00:07]} 54. Qd8 {[%clk 0:00:06]}  Kf4 {[%clk 0:00:08]} 55. Qf8 {[%clk 0:00:06]}  Kf5 {[%clk 0:00:08]} 56. Qxg7 {[%clk 0:00:06]} 1-0


[Site "https://www.chess.com"]

[Event "Titled Tuesday Blitz May 10 Early 2022"]
[White "Piesik, Piotr"]
[Black "Samadov, Read"]
[WhiteFideId "1136194"]
[BlackFideId "13417444"]
[WhiteElo "2190"]
[BlackElo "2084"]
[Result "0-1"]
[Round "08"]
[TimeControl "180+1"]
[Date "2022.05.10"]
[WhiteClock "0:00:04"]
[BlackClock "0:00:04"]

1. Nf3 {[%clk 0:02:31]}  Nf6 {[%clk 0:02:58]} 2. g3 {[%clk 0:02:31]}  d5 {[%clk 0:02:59]} 3. Bg2 {[%clk 0:02:31]}  c6 {[%clk 0:02:59]} 4. O-O {[%clk 0:02:31]}  Bg4 {[%clk 0:03:00]} 5. d3 {[%clk 0:02:31]}  Nbd7 {[%clk 0:03:00]} 6. Nbd2 {[%clk 0:02:30]}  e5 {[%clk 0:03:01]} 7. e4 {[%clk 0:02:30]}  dxe4 {[%clk 0:03:00]} 8. dxe4 {[%clk 0:02:30]}  Bc5 {[%clk 0:03:00]} 9. h3 {[%clk 0:02:30]}  Bxf3 {[%clk 0:03:00]} 10. Qxf3 {[%clk 0:02:31]}  O-O {[%clk 0:03:00]} 11. a4 {[%clk 0:02:32]}  a5 {[%clk 0:03:00]} 12. Nb3 {[%clk 0:02:30]}  Bb6 {[%clk 0:02:56]} 13. Rd1 {[%clk 0:02:18]}  Qe7 {[%clk 0:02:56]} 14. Be3 {[%clk 0:02:18]}  Bxe3 {[%clk 0:02:55]} 15. Qxe3 {[%clk 0:02:19]}  Rfd8 {[%clk 0:02:55]} 16. Qc3 {[%clk 0:02:16]}  Qb4 {[%clk 0:02:43]} 17. Qxb4 {[%clk 0:02:16]}  axb4 {[%clk 0:02:44]} 18. a5 {[%clk 0:02:16]}  c5 {[%clk 0:02:27]} 19. Bf1 {[%clk 0:02:11]}  Nxe4 {[%clk 0:02:26]} 20. Bb5 {[%clk 0:02:11]}  Ndf6 {[%clk 0:02:23]} 21. Kg2 {[%clk 0:02:05]}  Nd6 {[%clk 0:02:19]} 22. Be2 {[%clk 0:02:01]}  c4 {[%clk 0:02:18]} 23. Nc5 {[%clk 0:02:00]}  Rac8 {[%clk 0:02:16]} 24. Na4 {[%clk 0:01:53]}  c3 {[%clk 0:01:26]} 25. bxc3 {[%clk 0:01:51]}  bxc3 {[%clk 0:01:26]} 26. Ra3 {[%clk 0:01:47]}  Ra8 {[%clk 0:00:52]} 27. Nb6 {[%clk 0:01:30]}  Ra7 {[%clk 0:00:49]} 28. Rxc3 {[%clk 0:01:28]}  h5 {[%clk 0:00:38]} 29. Rcd3 {[%clk 0:01:07]}  Nfe8 {[%clk 0:00:38]} 30. Bxh5 {[%clk 0:00:56]}  Rxa5 {[%clk 0:00:34]} 31. Nc4 {[%clk 0:00:54]}  Ra6 {[%clk 0:00:34]} 32. Nxe5 {[%clk 0:00:46]}  Rc8 {[%clk 0:00:32]} 33. c4 {[%clk 0:00:22]}  Ra5 {[%clk 0:00:32]} 34. Rd5 {[%clk 0:00:22]}  Rxd5 {[%clk 0:00:17]} 35. Rxd5 {[%clk 0:00:18]}  g6 {[%clk 0:00:17]} 36. Be2 {[%clk 0:00:16]}  Kg7 {[%clk 0:00:16]} 37. c5 {[%clk 0:00:16]}  Ne4 {[%clk 0:00:15]} 38. Rd7 {[%clk 0:00:15]}  Rc7 {[%clk 0:00:16]} 39. Bc4 {[%clk 0:00:06]}  Rxd7 {[%clk 0:00:11]} 40. Nxd7 {[%clk 0:00:07]}  Nc7 {[%clk 0:00:10]} 41. Bd3 {[%clk 0:00:05]}  Nc3 {[%clk 0:00:09]} 42. f4 {[%clk 0:00:04]}  Ne6 {[%clk 0:00:09]} 43. Bc4 {[%clk 0:00:02]}  Nd4 {[%clk 0:00:07]} 44. Kf2 {[%clk 0:00:01]}  Nd1+ {[%clk 0:00:05]} 45. Ke1 {[%clk 0:00:01]}  Ne3 {[%clk 0:00:06]} 46. Bd3 {[%clk 0:00:01]}  Ne6 {[%clk 0:00:05]} 47. Kf2 {[%clk 0:00:02]}  Nd5 {[%clk 0:00:05]} 48. Nb6 {[%clk 0:00:02]}  Nxc5 {[%clk 0:00:05]} 49. Nxd5 {[%clk 0:00:02]}  Nxd3+ {[%clk 0:00:05]} 50. Ke3 {[%clk 0:00:03]}  Nc5 {[%clk 0:00:06]} 51. Kd4 {[%clk 0:00:03]}  Ne6+ {[%clk 0:00:07]} 52. Ke5 {[%clk 0:00:04]}  b5 {[%clk 0:00:06]} 53. Nc3 {[%clk 0:00:03]}  b4 {[%clk 0:00:06]} 54. Na4 {[%clk 0:00:03]}  b3 {[%clk 0:00:05]} 55. Ke4 {[%clk 0:00:04]}  Nc5+ {[%clk 0:00:04]} 0-1


[Site "https://www.chess.com"]

[Event "Titled Tuesday Blitz May 10 Early 2022"]
[White "Rahman, Adel"]
[Black "Ambartsumova, Karina"]
[WhiteFideId "14204177"]
[BlackFideId "4166299"]
[WhiteElo "2175"]
[BlackElo "2262"]
[Result "0-1"]
[Round "08"]
[TimeControl "180+1"]
[Date "2022.05.11"]
[WhiteClock "0:00:16"]
[BlackClock "0:00:13"]

1. e4 {[%clk 0:02:53]}  c5 {[%clk 0:02:59]} 2. Nf3 {[%clk 0:02:53]}  Nc6 {[%clk 0:02:59]} 3. d4 {[%clk 0:02:53]}  cxd4 {[%clk 0:03:00]} 4. Nxd4 {[%clk 0:02:53]}  Qb6 {[%clk 0:03:01]} 5. Nb3 {[%clk 0:02:52]}  Nf6 {[%clk 0:03:01]} 6. Nc3 {[%clk 0:02:52]}  e6 {[%clk 0:03:02]} 7. Be3 {[%clk 0:02:51]}  Qc7 {[%clk 0:03:02]} 8. a3 {[%clk 0:02:44]}  a6 {[%clk 0:03:01]} 9. f4 {[%clk 0:02:42]}  d6 {[%clk 0:03:02]} 10. Qf3 {[%clk 0:02:42]}  b5 {[%clk 0:02:57]} 11. g4 {[%clk 0:02:39]}  Bb7 {[%clk 0:02:58]} 12. g5 {[%clk 0:02:38]}  Nd7 {[%clk 0:02:58]} 13. O-O-O {[%clk 0:02:36]}  Be7 {[%clk 0:02:56]} 14. h4 {[%clk 0:02:32]}  Nc5 {[%clk 0:02:55]} 15. Nxc5 {[%clk 0:02:27]}  dxc5 {[%clk 0:02:56]} 16. Bg2 {[%clk 0:02:24]}  b4 {[%clk 0:02:53]} 17. Nb1 {[%clk 0:02:22]}  c4 {[%clk 0:02:45]} 18. axb4 {[%clk 0:02:18]}  Nxb4 {[%clk 0:02:42]} 19. Nc3 {[%clk 0:02:13]}  Qa5 {[%clk 0:02:28]} 20. Kb1 {[%clk 0:02:08]}  Bc6 {[%clk 0:01:44]} 21. Bd4 {[%clk 0:02:05]}  O-O {[%clk 0:01:30]} 22. h5 {[%clk 0:02:03]}  Rab8 {[%clk 0:01:07]} 23. g6 {[%clk 0:01:56]}  h6 {[%clk 0:01:05]} 24. gxf7+ {[%clk 0:01:53]}  Rxf7 {[%clk 0:01:06]} 25. Qg4 {[%clk 0:01:46]}  Ba4 {[%clk 0:00:28]} 26. Rd2 {[%clk 0:01:28]}  Bxc2+ {[%clk 0:00:27]} 27. Rxc2 {[%clk 0:01:27]}  Nxc2 {[%clk 0:00:28]} 28. Kxc2 {[%clk 0:01:27]}  Qb4 {[%clk 0:00:28]} 29. Ne2 {[%clk 0:00:49]}  Qb3+ {[%clk 0:00:27]} 30. Kc1 {[%clk 0:00:48]}  c3 {[%clk 0:00:14]} 31. Bxc3 {[%clk 0:00:45]}  Bb4 {[%clk 0:00:14]} 32. Be5 {[%clk 0:00:23]}  Rc8+ {[%clk 0:00:12]} 33. Nc3 {[%clk 0:00:24]}  Bxc3 {[%clk 0:00:11]} 34. Bxc3 {[%clk 0:00:20]}  Rxc3+ {[%clk 0:00:11]} 35. bxc3 {[%clk 0:00:20]}  Qxc3+ {[%clk 0:00:12]} 36. Kd1 {[%clk 0:00:18]}  Rd7+ {[%clk 0:00:12]} 37. Ke2 {[%clk 0:00:16]}  Rd2+ {[%clk 0:00:13]} 0-1


[Site "https://www.chess.com"]

[Event "Titled Tuesday Blitz May 10 Early 2022"]
[White "Riehle, Marco"]
[Black "Cunjalo, Faris"]
[WhiteFideId "12904392"]
[BlackFideId "14410710"]
[WhiteElo "2462"]
[BlackElo "2263"]
[Result "1-0"]
[Round "08"]
[TimeControl "180+1"]
[Date "2022.05.10"]
[WhiteClock "0:00:20"]
[BlackClock "0:00:01"]

1. e4 {[%clk 0:03:00]}  c6 {[%clk 0:02:59]} 2. c4 {[%clk 0:03:00]}  d5 {[%clk 0:03:00]} 3. cxd5 {[%clk 0:03:01]}  cxd5 {[%clk 0:03:01]} 4. exd5 {[%clk 0:03:02]}  Nf6 {[%clk 0:03:02]} 5. Nc3 {[%clk 0:03:02]}  g6 {[%clk 0:02:59]} 6. Bc4 {[%clk 0:03:02]}  Bg7 {[%clk 0:02:59]} 7. Nf3 {[%clk 0:03:03]}  a6 {[%clk 0:02:58]} 8. a4 {[%clk 0:03:02]}  O-O {[%clk 0:02:58]} 9. O-O {[%clk 0:03:02]}  Nbd7 {[%clk 0:02:44]} 10. d3 {[%clk 0:02:59]}  b6 {[%clk 0:02:41]} 11. Re1 {[%clk 0:02:54]}  Bb7 {[%clk 0:02:41]} 12. Bf4 {[%clk 0:02:52]}  Re8 {[%clk 0:02:12]} 13. d6 {[%clk 0:02:45]}  e6 {[%clk 0:01:52]} 14. Rc1 {[%clk 0:02:27]}  Nh5 {[%clk 0:01:38]} 15. Bg3 {[%clk 0:02:19]}  Nxg3 {[%clk 0:01:38]} 16. hxg3 {[%clk 0:02:20]}  Qb8 {[%clk 0:01:29]} 17. Ne4 {[%clk 0:02:18]}  Bxb2 {[%clk 0:01:29]} 18. Rb1 {[%clk 0:02:08]}  Bg7 {[%clk 0:01:29]} 19. Nfg5 {[%clk 0:02:06]}  h6 {[%clk 0:01:21]} 20. Nxf7 {[%clk 0:02:06]}  Kxf7 {[%clk 0:01:22]} 21. Qg4 {[%clk 0:01:58]}  Bxe4 {[%clk 0:01:01]} 22. dxe4 {[%clk 0:01:35]}  Ne5 {[%clk 0:00:56]} 23. Qf4+ {[%clk 0:01:31]}  Kg8 {[%clk 0:00:56]} 24. Ba2 {[%clk 0:01:30]}  Qxd6 {[%clk 0:00:56]} 25. Red1 {[%clk 0:01:29]}  Qc7 {[%clk 0:00:47]} 26. Rbc1 {[%clk 0:01:28]}  Qf7 {[%clk 0:00:43]} 27. Qe3 {[%clk 0:01:28]}  b5 {[%clk 0:00:41]} 28. a5 {[%clk 0:01:26]}  Nc4 {[%clk 0:00:38]} 29. Bxc4 {[%clk 0:01:24]}  bxc4 {[%clk 0:00:39]} 30. Rxc4 {[%clk 0:01:24]}  Rac8 {[%clk 0:00:29]} 31. Rb4 {[%clk 0:01:21]}  Rc2 {[%clk 0:00:24]} 32. Rb6 {[%clk 0:01:14]}  Rf8 {[%clk 0:00:19]} 33. Rf1 {[%clk 0:01:14]}  Rd8 {[%clk 0:00:11]} 34. Rb4 {[%clk 0:00:56]}  Rdd2 {[%clk 0:00:11]} 35. e5 {[%clk 0:00:53]}  Kh7 {[%clk 0:00:11]} 36. Rf4 {[%clk 0:00:48]}  Qc7 {[%clk 0:00:10]} 37. Re4 {[%clk 0:00:46]}  Qc5 {[%clk 0:00:08]} 38. Qf4 {[%clk 0:00:42]}  Qxa5 {[%clk 0:00:07]} 39. Qf7 {[%clk 0:00:37]}  Qc7 {[%clk 0:00:03]} 40. Qxe6 {[%clk 0:00:35]}  Re2 {[%clk 0:00:03]} 41. Rg4 {[%clk 0:00:33]}  Rc6 {[%clk 0:00:03]} 42. Qd5 {[%clk 0:00:29]}  Rxe5 {[%clk 0:00:03]} 43. Qd3 {[%clk 0:00:30]}  Qf7 {[%clk 0:00:01]} 44. Rd1 {[%clk 0:00:26]}  Rf5 {[%clk 0:00:02]} 45. f3 {[%clk 0:00:25]}  Re6 {[%clk 0:00:02]} 46. Kh2 {[%clk 0:00:20]}  Rh5+ {[%clk 0:00:02]} 47. Kg1 {[%clk 0:00:21]}  Rhe5 {[%clk 0:00:03]} 48. Kh2 {[%clk 0:00:21]}  h5 {[%clk 0:00:04]} 49. Rh4 {[%clk 0:00:21]}  Rf5 {[%clk 0:00:03]} 50. g4 {[%clk 0:00:20]}  Rfe5 {[%clk 0:00:01]} 51. gxh5 {[%clk 0:00:20]}  Kg8 {[%clk 0:00:01]} 52. h6 {[%clk 0:00:20]} 1-0


[Site "https://www.chess.com"]

[Event "Titled Tuesday Blitz May 10 Early 2022"]
[White "Sailer, Mike"]
[Black "Thomas, Anysia"]
[WhiteFideId "2012901"]
[BlackFideId "670472"]
[WhiteElo "2109"]
[BlackElo "2002"]
[Result "1/2-1/2"]
[Round "08"]
[TimeControl "180+1"]
[Date "2022.05.11"]
[WhiteClock "0:00:36"]
[BlackClock "0:00:10"]

1. d4 {[%clk 0:02:59]}  Nf6 {[%clk 0:02:54]} 2. Nf3 {[%clk 0:03:00]}  g6 {[%clk 0:02:48]} 3. Bf4 {[%clk 0:03:00]}  Bg7 {[%clk 0:02:49]} 4. e3 {[%clk 0:03:00]}  O-O {[%clk 0:02:48]} 5. Be2 {[%clk 0:03:00]}  d6 {[%clk 0:02:48]} 6. O-O {[%clk 0:03:00]}  Nbd7 {[%clk 0:02:45]} 7. h3 {[%clk 0:03:01]}  b6 {[%clk 0:02:46]} 8. c4 {[%clk 0:03:02]}  d5 {[%clk 0:02:45]} 9. Nc3 {[%clk 0:03:02]}  Bb7 {[%clk 0:02:45]} 10. a4 {[%clk 0:03:03]}  c5 {[%clk 0:02:46]} 11. a5 {[%clk 0:03:03]}  Rc8 {[%clk 0:02:35]} 12. axb6 {[%clk 0:03:03]}  axb6 {[%clk 0:02:24]} 13. Nb5 {[%clk 0:03:03]}  dxc4 {[%clk 0:02:20]} 14. Na7 {[%clk 0:02:53]}  cxd4 {[%clk 0:02:21]} 15. Nxc8 {[%clk 0:02:53]}  d3 {[%clk 0:02:11]} 16. Nxe7+ {[%clk 0:02:53]}  Qxe7 {[%clk 0:02:09]} 17. Bxd3 {[%clk 0:02:54]}  cxd3 {[%clk 0:02:08]} 18. Qxd3 {[%clk 0:02:54]}  Bxf3 {[%clk 0:01:59]} 19. gxf3 {[%clk 0:02:54]}  Qe6 {[%clk 0:01:50]} 20. Kg2 {[%clk 0:02:48]}  Nd5 {[%clk 0:01:46]} 21. Bg3 {[%clk 0:02:41]}  Nc5 {[%clk 0:01:46]} 22. Qb5 {[%clk 0:02:38]}  h5 {[%clk 0:01:29]} 23. h4 {[%clk 0:02:24]}  f5 {[%clk 0:01:10]} 24. Ra7 {[%clk 0:02:10]}  f4 {[%clk 0:01:00]} 25. Bxf4 {[%clk 0:01:57]}  Nxf4+ {[%clk 0:01:01]} 26. exf4 {[%clk 0:01:57]}  Rxf4 {[%clk 0:01:00]} 27. Rd1 {[%clk 0:01:31]}  Rg4+ {[%clk 0:00:45]} 28. fxg4 {[%clk 0:01:15]}  Qxg4+ {[%clk 0:00:45]} 29. Kf1 {[%clk 0:01:03]}  Qxd1+ {[%clk 0:00:45]} 30. Kg2 {[%clk 0:01:04]}  Qd5+ {[%clk 0:00:42]} 31. Kg1 {[%clk 0:01:00]}  Qd1+ {[%clk 0:00:37]} 32. Kg2 {[%clk 0:01:01]}  Qg4+ {[%clk 0:00:35]} 33. Kf1 {[%clk 0:01:01]}  Ne4 {[%clk 0:00:13]} 34. Qe8+ {[%clk 0:00:52]}  Kh7 {[%clk 0:00:13]} 35. Rxg7+ {[%clk 0:00:35]}  Kxg7 {[%clk 0:00:12]} 36. Qe7+ {[%clk 0:00:35]}  Kg8 {[%clk 0:00:10]} 37. Qe8+ {[%clk 0:00:36]}  Kg7 {[%clk 0:00:10]} 38. Qe7+ {[%clk 0:00:37]}  Kh6 {[%clk 0:00:10]} 39. Qf8+ {[%clk 0:00:37]}  Kh7 {[%clk 0:00:10]} 40. Qf7+ {[%clk 0:00:35]}  Kh8 {[%clk 0:00:09]} 41. Qf8+ {[%clk 0:00:35]}  Kh7 {[%clk 0:00:09]} 42. Qf7+ {[%clk 0:00:36]}  Kh6 {[%clk 0:00:09]} 43. Qf8+ {[%clk 0:00:36]}  Kh7 {[%clk 0:00:10]} 1/2-1/2


[Site "https://www.chess.com"]

[Event "Titled Tuesday Blitz May 10 Early 2022"]
[White "Samant Aditya S"]
[Black "Meshkovs, Nikita"]
[WhiteFideId "35080580"]
[BlackFideId "11602740"]
[WhiteElo "1916"]
[BlackElo "2506"]
[Result "0-1"]
[Round "08"]
[TimeControl "180+1"]
[Date "2022.05.10"]
[WhiteClock "0:00:02"]
[BlackClock "0:00:26"]

1. e4 {[%clk 0:03:00]}  e5 {[%clk 0:02:58]} 2. Nf3 {[%clk 0:03:01]}  Nc6 {[%clk 0:02:57]} 3. d4 {[%clk 0:03:01]}  exd4 {[%clk 0:02:58]} 4. Bc4 {[%clk 0:03:02]}  Nf6 {[%clk 0:02:54]} 5. O-O {[%clk 0:03:02]}  d6 {[%clk 0:02:27]} 6. Nxd4 {[%clk 0:02:59]}  Be7 {[%clk 0:02:26]} 7. Nc3 {[%clk 0:02:59]}  O-O {[%clk 0:02:26]} 8. Bb3 {[%clk 0:02:56]}  Bd7 {[%clk 0:02:20]} 9. Bf4 {[%clk 0:02:55]}  Re8 {[%clk 0:02:19]} 10. Re1 {[%clk 0:02:53]}  Bf8 {[%clk 0:02:17]} 11. Qd2 {[%clk 0:02:52]}  Ne5 {[%clk 0:02:15]} 12. Rad1 {[%clk 0:02:38]}  Ng6 {[%clk 0:02:07]} 13. Bg3 {[%clk 0:02:37]}  Nh5 {[%clk 0:02:04]} 14. Nf3 {[%clk 0:02:25]}  Nxg3 {[%clk 0:02:04]} 15. hxg3 {[%clk 0:02:26]}  Be6 {[%clk 0:02:03]} 16. Bxe6 {[%clk 0:02:23]}  fxe6 {[%clk 0:02:04]} 17. Ne2 {[%clk 0:02:17]}  c6 {[%clk 0:01:42]} 18. Nf4 {[%clk 0:02:11]}  Qf6 {[%clk 0:01:31]} 19. e5 {[%clk 0:02:00]}  Nxe5 {[%clk 0:01:30]} 20. Nxe5 {[%clk 0:01:59]}  dxe5 {[%clk 0:01:31]} 21. Nd3 {[%clk 0:01:58]}  Rad8 {[%clk 0:01:31]} 22. Qe2 {[%clk 0:01:58]}  Bd6 {[%clk 0:01:17]} 23. g4 {[%clk 0:01:56]}  Bc7 {[%clk 0:01:13]} 24. g3 {[%clk 0:01:54]}  Rd5 {[%clk 0:01:09]} 25. Kg2 {[%clk 0:01:50]}  b5 {[%clk 0:01:09]} 26. Qe4 {[%clk 0:01:38]}  Red8 {[%clk 0:01:07]} 27. b4 {[%clk 0:01:25]}  Bb6 {[%clk 0:01:05]} 28. Qf3 {[%clk 0:00:51]}  Rf8 {[%clk 0:00:59]} 29. Qxf6 {[%clk 0:00:50]}  gxf6 {[%clk 0:01:00]} 30. f3 {[%clk 0:00:45]}  Rd4 {[%clk 0:00:58]} 31. Ra1 {[%clk 0:00:32]}  Rc4 {[%clk 0:00:57]} 32. Re2 {[%clk 0:00:30]}  Bd4 {[%clk 0:00:57]} 33. Rh1 {[%clk 0:00:27]}  Kg7 {[%clk 0:00:52]} 34. f4 {[%clk 0:00:25]}  h6 {[%clk 0:00:48]} 35. Kf3 {[%clk 0:00:22]}  Bc3 {[%clk 0:00:43]} 36. a3 {[%clk 0:00:19]}  Kg6 {[%clk 0:00:41]} 37. Rf1 {[%clk 0:00:08]}  a5 {[%clk 0:00:37]} 38. bxa5 {[%clk 0:00:07]}  Bxa5 {[%clk 0:00:38]} 39. Rh1 {[%clk 0:00:06]}  Bc7 {[%clk 0:00:36]} 40. Rb1 {[%clk 0:00:02]}  Bd6 {[%clk 0:00:36]} 41. a4 {[%clk 0:00:02]}  Rxa4 {[%clk 0:00:36]} 42. Rh1 {[%clk 0:00:02]}  Rf7 {[%clk 0:00:32]} 43. Nf2 {[%clk 0:00:03]}  exf4 {[%clk 0:00:30]} 44. gxf4 {[%clk 0:00:04]}  Rxf4+ {[%clk 0:00:31]} 45. Kg2 {[%clk 0:00:03]}  Re7 {[%clk 0:00:28]} 46. Rg1 {[%clk 0:00:02]}  Bc5 {[%clk 0:00:28]} 47. Rge1 {[%clk 0:00:02]}  Rxf2+ {[%clk 0:00:28]} 48. Rxf2 {[%clk 0:00:03]}  Bxf2 {[%clk 0:00:28]} 49. Kxf2 {[%clk 0:00:04]}  Kg5 {[%clk 0:00:28]} 50. Kf3 {[%clk 0:00:05]}  e5 {[%clk 0:00:26]} 51. Ke4 {[%clk 0:00:03]}  Rd7 {[%clk 0:00:26]} 52. c3 {[%clk 0:00:02]}  Rd2 {[%clk 0:00:26]} 0-1


[Site "https://www.chess.com"]

[Event "Titled Tuesday Blitz May 10 Early 2022"]
[White "Shuvalov, Evgenij"]
[Black "Harshavardhan G B"]
[WhiteFideId "4187237"]
[BlackFideId "25059009"]
[WhiteElo "2053"]
[BlackElo "1831"]
[Result "0-1"]
[Round "08"]
[TimeControl "180+1"]
[Date "2022.05.11"]
[WhiteClock "0:00:01"]
[BlackClock "0:00:17"]

1. Nf3 {[%clk 0:02:54]}  d5 {[%clk 0:02:54]} 2. c4 {[%clk 0:02:50]}  d4 {[%clk 0:02:53]} 3. b4 {[%clk 0:02:50]}  f6 {[%clk 0:02:52]} 4. e3 {[%clk 0:02:50]}  e5 {[%clk 0:02:47]} 5. c5 {[%clk 0:02:49]}  d3 {[%clk 0:02:41]} 6. Qb3 {[%clk 0:02:42]}  e4 {[%clk 0:02:36]} 7. Nd4 {[%clk 0:02:40]}  Nc6 {[%clk 0:02:30]} 8. Bb2 {[%clk 0:02:29]}  Nxd4 {[%clk 0:02:27]} 9. Bxd4 {[%clk 0:02:28]}  Ne7 {[%clk 0:02:28]} 10. Bb2 {[%clk 0:02:01]}  Nd5 {[%clk 0:01:59]} 11. Nc3 {[%clk 0:01:47]}  Nxc3 {[%clk 0:01:58]} 12. Bxc3 {[%clk 0:01:45]}  Qe7 {[%clk 0:01:52]} 13. Qc4 {[%clk 0:01:33]}  f5 {[%clk 0:01:52]} 14. g4 {[%clk 0:01:22]}  Be6 {[%clk 0:01:50]} 15. Qd4 {[%clk 0:01:21]}  Rd8 {[%clk 0:01:40]} 16. Qe5 {[%clk 0:01:20]}  Rd5 {[%clk 0:01:39]} 17. Qg3 {[%clk 0:01:04]}  Rg8 {[%clk 0:01:28]} 18. gxf5 {[%clk 0:00:57]}  Bxf5 {[%clk 0:01:26]} 19. Bg2 {[%clk 0:00:51]}  g6 {[%clk 0:01:26]} 20. f3 {[%clk 0:00:41]}  Bg7 {[%clk 0:01:24]} 21. Bxg7 {[%clk 0:00:40]}  Rxg7 {[%clk 0:01:22]} 22. O-O {[%clk 0:00:35]}  Qe5 {[%clk 0:01:17]} 23. fxe4 {[%clk 0:00:24]}  Bxe4 {[%clk 0:01:14]} 24. Bxe4 {[%clk 0:00:20]}  Qxe4 {[%clk 0:01:15]} 25. Rf4 {[%clk 0:00:19]}  Qe7 {[%clk 0:01:13]} 26. Qf3 {[%clk 0:00:18]}  c6 {[%clk 0:01:09]} 27. Rf1 {[%clk 0:00:17]}  Rf5 {[%clk 0:01:07]} 28. Kh1 {[%clk 0:00:15]}  Rgf7 {[%clk 0:01:05]} 29. Qg3 {[%clk 0:00:12]}  Qd7 {[%clk 0:00:57]} 30. Rxf5 {[%clk 0:00:12]}  Rxf5 {[%clk 0:00:57]} 31. Qb8+ {[%clk 0:00:11]}  Kf7 {[%clk 0:00:52]} 32. Rxf5+ {[%clk 0:00:11]}  gxf5 {[%clk 0:00:52]} 33. Qf4 {[%clk 0:00:10]}  Ke6 {[%clk 0:00:50]} 34. Kg1 {[%clk 0:00:10]}  Qg7+ {[%clk 0:00:48]} 35. Kf1 {[%clk 0:00:10]}  Qa1+ {[%clk 0:00:46]} 36. Kf2 {[%clk 0:00:10]}  Qxa2 {[%clk 0:00:47]} 37. Qd6+ {[%clk 0:00:11]}  Kf7 {[%clk 0:00:46]} 38. Qxd3 {[%clk 0:00:11]}  Qe6 {[%clk 0:00:42]} 39. Qd4 {[%clk 0:00:11]}  Kg6 {[%clk 0:00:39]} 40. Qd8 {[%clk 0:00:09]}  h6 {[%clk 0:00:30]} 41. Qc7 {[%clk 0:00:08]}  Qd5 {[%clk 0:00:28]} 42. d4 {[%clk 0:00:04]}  Qa2+ {[%clk 0:00:26]} 43. Kf3 {[%clk 0:00:04]}  Qb1 {[%clk 0:00:23]} 44. Qg3+ {[%clk 0:00:02]}  Kf6 {[%clk 0:00:21]} 45. Qe5+ {[%clk 0:00:02]}  Kf7 {[%clk 0:00:22]} 46. Qc7+ {[%clk 0:00:02]}  Ke6 {[%clk 0:00:21]} 47. Qd6+ {[%clk 0:00:02]}  Kf7 {[%clk 0:00:22]} 48. Qc7+ {[%clk 0:00:02]}  Kf6 {[%clk 0:00:22]} 49. Qd6+ {[%clk 0:00:03]}  Kg5 {[%clk 0:00:22]} 50. Qf4+ {[%clk 0:00:02]}  Kg6 {[%clk 0:00:22]} 51. Qd6+ {[%clk 0:00:03]}  Kh5 {[%clk 0:00:22]} 52. Qe5 {[%clk 0:00:02]}  Qf1+ {[%clk 0:00:21]} 53. Kg3 {[%clk 0:00:03]}  Qg1+ {[%clk 0:00:21]} 54. Kf3 {[%clk 0:00:03]}  Qg4+ {[%clk 0:00:18]} 55. Kf2 {[%clk 0:00:03]}  a6 {[%clk 0:00:18]} 56. Qe8+ {[%clk 0:00:03]}  Kh4 {[%clk 0:00:18]} 57. Qe7+ {[%clk 0:00:02]}  Kh3 {[%clk 0:00:18]} 58. Qe5 {[%clk 0:00:02]}  Qg2+ {[%clk 0:00:18]} 59. Ke1 {[%clk 0:00:02]}  Qf3 {[%clk 0:00:18]} 60. Qf6 {[%clk 0:00:01]}  h5 {[%clk 0:00:17]} 0-1


[Site "https://www.chess.com"]